fUSD/lending_fUSD_20240129
["ID","MTS","AMOUNT","RATE_DAILY","PERIOD"]
[312963793,1706549432365,-150.0,0.00024383,2]
[312963795,1706549432375,-236.92,0.0002444,2]
[312963797,1706549432384,-236.92,0.00024507,2]
[312963799,1706549432394,-500.0,0.00024514,2]
[312963801,1706549432403,-200.0,0.0002454,2]
[312963803,1706549432413,-442.72,0.00024562,2]
[312963805,1706549432422,-1000.0,0.00024562,2]
[312963807,1706549432431,-236.92,0.00024574,2]
[312963809,1706549432441,-4933.38,0.00024581,2]
[312963811,1706549432450,-1514.29573387,0.00024581,2]
[312963814,1706549432462,-339.95296193,0.00024581,2]
[312963816,1706549432475,-499.51621629,0.00024581,2]
[312963818,1706549432487,-694.98508791,0.00024581,2]
[312963820,1706549432496,-236.92,0.00024641,2]
[312963822,1706549432505,-150.0,0.00024662,2]
[312963824,1706549432515,-315.44,0.00024684,2]
[312963826,1706549432527,-200.0,0.00024691,2]
[312963828,1706549432538,-236.92,0.00024708,2]
[312963830,1706549432547,-2600.6,0.00024745,2]
[312963832,1706549432558,-200.0,0.00024774,2]
[312963834,1706549432567,-236.92,0.00024775,2]
[312963836,1706549432576,-250.0,0.00024791,2]
[312963838,1706549432585,-213.76215826,0.00024827,2]
[312963841,1706549432600,-286.23784174,0.00024827,2]
[312963842,1706549432610,-750.0,0.00024835,2]
[312963844,1706549432619,-236.92,0.00024842,2]
[312963847,1706549432629,-203.71027163,0.00024897,2]
[312963849,1706549432639,-1419.91189668,0.00024897,2]
[312963850,1706549432648,-1838.0915608,0.00024897,2]
[312963855,1706549432684,-468.5699798,0.00024897,2]
[312963857,1706549432695,-1770.75307505,0.00024897,2]
[312963859,1706549432707,-397.00295584,0.00024897,2]
[312963861,1706549432716,-238.81855512,0.00024898,2]
[312963862,1706549432728,-1258.21082121,0.00024898,2]
[312963863,1706549432737,-203.81367617,0.00024898,2]
[312963864,1706549432747,-377.2247693,0.00024898,2]
[312963865,1706549432758,-2903.36861978,0.00024898,2]
[312963866,1706549432767,-4255.31741538,0.00024898,2]
[312963867,1706549432777,-42898.83959763,0.00024899,2]
[312963868,1706549432786,-236.92,0.00024909,2]
[312963869,1706549432795,-236.92,0.00024976,2]
[312963870,1706549432804,-326.93527378,0.00025,2]
[312963871,1706549432813,-3011.67714353,0.00025,2]
[312963872,1706549432822,-236.92,0.00025043,2]
[312963873,1706549432831,-236.92,0.0002511,2]
[312963874,1706549432840,-181.12,0.00025154,2]
[312963875,1706549432849,-236.92,0.00025177,2]
[312963876,1706549432858,-236.92,0.00025244,2]
[312963877,1706549432867,-236.92,0.00025311,2]
[312963878,1706549432876,-1464.61,0.00025357,2]
[312963879,1706549432885,-236.92,0.00025378,2]
[312963880,1706549432894,-236.92,0.00025445,2]
[312963881,1706549432903,-236.92,0.00025512,2]
[312963882,1706549432912,-236.92,0.00025579,2]
[312963883,1706549432921,-236.92,0.00025646,2]
[312963884,1706549432930,-236.92,0.00025713,2]
[312963885,1706549432939,-181.12,0.00026067,2]
[312963886,1706549432948,-150.0,0.00026079,2]
[312963887,1706549432957,-150.0,0.000263,2]
[312963888,1706549432965,-2600.6,0.00026389,2]
[312963889,1706549432975,-230.3,0.00026536,2]
[312963890,1706549432983,-293.0,0.00026595,2]
[312963891,1706549432992,-856.49,0.00026881,2]
[312963892,1706549433001,-1023.5,0.00026885,2]
[312963893,1706549433010,-250.0,0.00026909,2]
[312963894,1706549433019,-2000.0,0.00026909,2]
[312963895,1706549433031,-250.0,0.00026922,2]
[312963896,1706549433041,-166.44,0.00026933,2]
[312963897,1706549433052,-503.84,0.0002694,2]
[312963898,1706549433062,-181.12,0.0002698,2]
[312963899,1706549433072,-15291.42,0.00027003,2]
[312963900,1706549433082,-170.92,0.0002703,2]
[312963901,1706549433091,-305.59,0.00027078,2]
[312963902,1706549433100,-2705.0,0.00027078,2]
[312963903,1706549433110,-23900.0,0.00027209,2]
[312963904,1706549433119,-68580.659,0.00027331,2]
[312963905,1706549433129,-467.66,0.00027397,2]
[312963906,1706549433138,-1979.4,0.0002753,2]
[312963907,1706549433147,-1464.61,0.00027621,2]
[312963908,1706549433156,-1000.0,0.00027633,2]
[312963909,1706549433166,-1983.92,0.00027671,2]
[312963910,1706549433175,-467.66,0.00027686,2]
[312963911,1706549433185,-378.758,0.00027797,2]
[312963912,1706549433194,-1000.0,0.00027897,2]
[312963913,1706549433203,-1938.0,0.00027897,2]
[312963914,1706549433212,-320.0,0.00027897,2]
[312963915,1706549433221,-860.0,0.00027897,2]
[312963916,1706549433230,-1138.0,0.00027897,2]
[312963917,1706549433239,-1199.928,0.00027897,2]
[312963918,1706549433248,-2912.0,0.00027897,2]
[312963919,1706549433258,-1858.0,0.00027897,2]
[312963920,1706549433267,-837.0,0.00027897,2]
[312963921,1706549433278,-896.622,0.00027897,2]
[312963922,1706549433287,-1004.091,0.00027897,2]
[312963923,1706549433296,-467.66,0.00027974,2]
[312963924,1706549433306,-2600.6,0.00028033,2]
[312963925,1706549433314,-467.66,0.00028262,2]
[312963926,1706549433324,-467.66,0.00028551,2]
[312963927,1706549433333,-1983.92,0.00028695,2]
[312963928,1706549433343,-168.38,0.00028697,2]
[312963929,1706549433351,-3209.72,0.00028792,2]
[312963930,1706549433360,-2599.8421,0.00028824,2]
[312963931,1706549433369,-200.0,0.00028824,2]
[312963932,1706549433378,-467.66,0.00028839,2]
[312963933,1706549433387,-467.66,0.00029128,2]
[312963934,1706549433397,-467.66,0.00029416,2]
[312963935,1706549433414,-155.0,0.000295,3]
[312963936,1706549433423,-2600.6,0.00029677,2]
[312963937,1706549433432,-467.66,0.00029704,2]
[312963938,1706549433441,-1983.92,0.00029719,2]
[312963939,1706549433450,-529.44,0.00029784,2]
[312963940,1706549433461,-1464.61,0.00029885,2]
[312963941,1706549433471,-467.66,0.00029993,2]
[312963942,1706549433481,-177.02124406,0.0003,4]
[312963943,1706549433490,-297.5883722,0.0003,4]
[312963944,1706549433500,-155.89222863,0.0003,4]
[312963945,1706549433509,-160.85990739,0.0003,4]
[312963946,1706549433518,-8864.47652255,0.0003,4]
[312963947,1706549433528,-150.0,0.0003,7]
[312963948,1706549433536,-693.5979328,0.0003,2]
[312963949,1706549433546,-9662.59760279,0.0003,2]
[312963950,1706549433555,-155.0,0.0003,2]
[312963951,1706549433565,-4961.49630549,0.0003,4]
[312963952,1706549433574,-154.77,0.00030137,2]
[312963953,1706549433584,-167.79,0.0003022,2]
[312963954,1706549433593,-467.66,0.00030281,2]
[312963955,1706549433602,-1000.0,0.00030443,7]
[312963956,1706549433611,-249.21543862,0.00030443,6]
[312963957,1706549433620,-1000.0,0.00030443,7]
[312963958,1706549433629,-1000.0,0.00030443,7]
[312963959,1706549433638,-490.49719945,0.00030443,6]
[312963960,1706549433647,-1000.0,0.00030443,7]
[312963961,1706549433657,-1000.0,0.00030443,7]
[312963962,1706549433666,-456.50721747,0.00030443,6]
[312963963,1706549433676,-270.65072175,0.00030443,6]
[312963964,1706549433684,-467.66,0.00030569,2]
[312963965,1706549433694,-1000.0,0.00030703,2]
[312963966,1706549433703,-1983.92,0.00030743,2]
[312963967,1706549433712,-467.66,0.00030858,2]
[312963968,1706549433721,-766.863,0.00030897,2]
[312963969,1706549433730,-315.95,0.00030897,2]
[312963970,1706549433739,-467.66,0.00031146,2]
[312963971,1706549433748,-529.44,0.00031273,2]
[312963972,1706549433758,-2600.6,0.0003132,2]
[312963973,1706549433767,-467.66,0.00031435,2]
[312963974,1706549433777,-411.32449679,0.0003145,2]
[312963975,1706549433786,-180.0,0.00031644,2]
[312963976,1706549433796,-467.66,0.00031723,2]
[312963977,1706549433804,-1983.92,0.00031767,2]
[312963978,1706549433813,-154.77,0.00031963,2]
[312963979,1706549433822,-156.25094584,0.00032,2]
[312963980,1706549433832,-467.66,0.00032011,2]
[312963981,1706549433841,-1464.61,0.00032148,2]
[312963982,1706549433849,-467.66,0.000323,2]
[312963983,1706549433859,-171.17,0.00032365,2]
[312963984,1706549433869,-184.13413816,0.00032487,2]
[312963985,1706549433879,-202.4662922,0.000325,2]
[312963986,1706549433889,-467.66,0.00032588,2]
[312963987,1706549433898,-529.44,0.00032762,2]
[312963988,1706549433907,-467.66,0.00032877,2]
[312963989,1706549433916,-500.0,0.00032877,2]
[312963990,1706549433925,-167.04,0.00032877,2]
[312963991,1706549433935,-2600.6,0.00032964,2]
[312963992,1706549433945,-151.0,0.0003336,120]
[312963993,1706549433954,-168.38,0.00033433,2]
[312963994,1706549433963,-34036.6351514,0.0003349,5]
[312963995,1706549433972,-64503.2425,0.000335,2]
[312963996,1706549433981,-267.233,0.000335,2]
[312963997,1706549433991,-1000.0,0.00033773,2]
[312963998,1706549434000,-200.0,0.00033778,5]
[312963999,1706549434009,-154.77,0.0003379,2]
[312964000,1706549434019,-591.69,0.00033844,2]
[312964001,1706549434031,-151.0,0.00034041,30]
[312964002,1706549434039,-529.44,0.00034251,2]
[312964003,1706549434049,-155.0,0.00034292,4]
[312964004,1706549434058,-1811.10395059,0.00034293,4]
[312964005,1706549434067,-156.69679072,0.00034293,4]
[312964006,1706549434076,-1464.61,0.00034412,2]
[312964007,1706549434086,-252.0,0.00034634,5]
[312964008,1706549434095,-151.0,0.00034735,7]
[312964009,1706549434104,-5672.77252523,0.0003489,7]
[312964010,1706549434113,-8983.97726548,0.000349,4]
[312964011,1706549434122,-5672.77252523,0.0003498,7]
[312964012,1706549434131,-5672.77252523,0.0003499,7]
[312964013,1706549434141,-155.41728124,0.00035,2]
[312964014,1706549434151,-449.39237637,0.00035,4]
[312964015,1706549434160,-155.0,0.00035,2]
[312964016,1706549434171,-3000.0,0.00035,2]
[312964017,1706549434180,-5000.0,0.00035,7]
[312964018,1706549434189,-150.0,0.00035,11]
[312964019,1706549434199,-450.0,0.00035,3]
[312964020,1706549434208,-200.0,0.00035117,5]
[312964021,1706549434218,-152.0,0.00035147,3]
[312964022,1706549434228,-1784.86,0.00035156,5]
[312964023,1706549434238,-167.79,0.00035257,2]
[312964024,1706549434248,-1000.0,0.000354,2]
[312964025,1706549434257,-151.0,0.00035444,4]
[312964026,1706549434267,-5672.77252523,0.00035563,8]
[312964027,1706549434278,-1803.21,0.00035573,5]
[312964028,1706549434289,-154.77,0.00035616,2]
[312964029,1706549434299,-221.752325,0.000357,2]
[312964030,1706549434309,-529.44,0.0003574,2]
[312964031,1706549434319,-4933.38,0.00035814,2]
[312964032,1706549434328,-5672.77252523,0.00035991,9]
[312964033,1706549434337,-297.82103745,0.00036,4]
[312964034,1706549434347,-441.1476,0.00036,2]
[312964035,1706549434356,-250.0,0.00036,2]
[312964036,1706549434365,-155.0,0.00036,2]
[312964037,1706549434374,-176.69,0.00036,2]
[312964038,1706549434383,-500.0,0.00036,2]
[312964039,1706549434393,-1601.4166157,0.00036,2]
[312964040,1706549434409,-150.0,0.00036,2]
[312964041,1706549434419,-150.0,0.00036,2]
[312964042,1706549434428,-500.0,0.00036011,2]
[312964043,1706549434438,-200.0,0.00036011,2]
[312964044,1706549434447,-5672.77252523,0.00036079,9]
[312964045,1706549434457,-11345.5450505,0.0003608,9]
[312964046,1706549434467,-17018.3175757,0.00036089,9]
[312964047,1706549434479,-17018.3175757,0.0003609,9]
[312964048,1706549434492,-630.29094218,0.00036097,4]
[312964049,1706549434502,-197.40756613,0.00036097,4]
[312964050,1706549434511,-155.0,0.00036097,4]
[312964051,1706549434522,-381.62257452,0.00036097,2]
[312964052,1706549434531,-377.11126663,0.00036098,4]
[312964053,1706549434541,-228.79454347,0.00036098,4]
[312964054,1706549434551,-400.95271343,0.00036098,4]
[312964055,1706549434560,-717.24099228,0.00036098,2]
[312964056,1706549434569,-155.0,0.00036098,4]
[312964057,1706549434579,-187.4192225,0.00036098,2]
[312964058,1706549434588,-289.09716601,0.00036098,4]
[312964059,1706549434597,-155.90374873,0.00036098,4]
[312964060,1706549434606,-362.14263408,0.00036098,4]
[312964061,1706549434616,-449.59414859,0.00036098,4]
[312964062,1706549434625,-245.28549074,0.00036098,4]
[312964063,1706549434634,-202.0593939,0.00036098,4]
[312964064,1706549434644,-270.43342454,0.00036099,4]
[312964065,1706549434653,-864.295,0.00036099,4]
[312964066,1706549434663,-12452.13976298,0.00036099,7]
[312964067,1706549434672,-18746.78039763,0.00036099,2]
[312964068,1706549434681,-1764.86,0.000361,3]
[312964069,1706549434690,-1764.86,0.000361,3]
[312964070,1706549434699,-1764.86,0.000361,3]
[312964071,1706549434708,-1764.86,0.000361,3]
[312964072,1706549434718,-1764.86,0.000361,3]
[312964073,1706549434727,-1764.86,0.000361,3]
[312964074,1706549434736,-1764.86,0.000361,3]
[312964075,1706549434745,-1764.86,0.000361,3]
[312964076,1706549434755,-1764.86,0.000361,3]
[312964077,1706549434764,-1764.86,0.000361,3]
[312964078,1706549434774,-1764.86,0.000361,3]
[312964079,1706549434783,-1764.86,0.000361,3]
[312964080,1706549434792,-1764.86,0.000361,3]
[312964081,1706549434801,-1764.86,0.000361,3]
[312964082,1706549434811,-1764.86,0.000361,3]
[312964083,1706549434821,-1764.86,0.000361,3]
[312964084,1706549434830,-1764.86,0.000361,3]
[312964085,1706549434839,-1764.86,0.000361,3]
[312964086,1706549434848,-1764.86,0.000361,3]
[312964087,1706549434858,-1764.86,0.000361,3]
[312964088,1706549434867,-154.68,0.000361,3]
[312964089,1706549434876,-154.68,0.000361,3]
[312964090,1706549434885,-154.68,0.000361,3]
[312964091,1706549434894,-154.68,0.000361,3]
[312964092,1706549434904,-1458.0,0.00036161,2]
[312964093,1706549434913,-151.0,0.00036168,2]
[312964094,1706549434923,-200.0,0.00036264,2]
[312964095,1706549434932,-1116.74097,0.000363,4]
[312964096,1706549434943,-623.44358858,0.00036417,2]
[312964097,1706549434953,-5672.77252523,0.0003648,9]
[312964098,1706549434963,-11345.5450505,0.0003649,9]
[312964099,1706549434972,-20358.90388484,0.000365,5]
[312964100,1706549434981,-200.0,0.00036517,2]
[312964101,1706549434990,-5672.77252523,0.00036543,9]
[312964102,1706549434999,-176.69,0.00036548,2]
[312964103,1706549435008,-230.08829952,0.00036548,2]
[312964104,1706549435018,-1800.47,0.00036553,5]
[312964105,1706549435028,-1464.61,0.00036676,2]
[312964106,1706549435037,-500.0,0.00036771,2]
[312964107,1706549435046,-200.0,0.00036771,2]
[312964108,1706549435056,-5672.77252523,0.00036776,10]
[312964109,1706549435065,-5672.77252523,0.00036786,10]
[312964110,1706549435075,-3408.14934104,0.00036796,9]
[312964111,1706549435084,-184.13974982,0.00036796,9]
[312964112,1706549435093,-153.66883211,0.00036796,2]
[312964113,1706549435103,-213.36543943,0.00036796,2]
[312964114,1706549435112,-523.8010228,0.00036796,2]
[312964115,1706549435121,-1015.47143302,0.00036796,2]
[312964116,1706549435130,-929.08236566,0.00036796,2]
[312964117,1706549435140,-6219.17589574,0.00036796,2]
[312964118,1706549435149,-800.0,0.00036804,5]
[312964119,1706549435158,-1809.57,0.00036833,5]
[312964120,1706549435168,-1000.0,0.00036844,2]
[312964121,1706549435177,-5672.77252523,0.00036872,10]
[312964122,1706549435186,-73746.042828,0.00036875,10]
[312964123,1706549435195,-5672.77252523,0.00036882,10]
[312964124,1706549435204,-15003.362488,0.00036892,2]
[312964125,1706549435213,-1875.420311,0.00036893,2]
[312964126,1706549435223,-150.0,0.00036894,2]
[312964127,1706549435232,-1050899.4967235,0.00036895,2]
[312964148,1706549438735,-150.0,0.000263,2]
[312964149,1706549438745,-236.0,0.00027897,2]
[312964150,1706549438755,-434.13148813,0.00030343,5]
[312964151,1706549438764,-34.07971127,0.00032639,2]
[312964152,1706549438791,-215.92028873,0.00032639,2]
[312964153,1706549438800,-372.39474588,0.00036895,2]
[312964154,1706549438826,-1125.725006,0.00036895,2]
[312964155,1706549438850,-29639.30261878,0.00036895,2]
[312964156,1706549438861,-699.0577829,0.00036895,2]
[312964157,1706549438873,-31022.33830509,0.00036895,2]
[312964158,1706549438882,-14689.54665705,0.00036896,2]
[312964159,1706549438965,-1195.43925594,0.00036896,2]
[312964160,1706549438977,-1106.13673529,0.00036896,2]
[312964168,1706549440330,-165.502,0.00030897,2]
[312964169,1706549440339,-185.83723311,0.00032423,6]
[312964170,1706549440351,-248.29425502,0.00032423,6]
[312964171,1706549440360,-7171.84520607,0.00036896,2]
[312964172,1706549440391,-427.0,0.00027897,2]
[312964173,1706549440401,-86.84877829,0.00036896,2]
[312964174,1706549440412,-300.0,0.00036896,2]
[312964175,1706549441057,-9272.60806736,0.00036896,2]
[312964176,1706549441067,-2000.0,0.00036896,4]
[312964177,1706549441076,-209.0,0.00036896,2]
[312964178,1706549441085,-1154.8396,0.00036896,2]
[312964179,1706549441095,-32156.1857,0.00036896,2]
[312964180,1706549441105,-310.4579952,0.00037,4]
[312964181,1706549441114,-1589.84133871,0.00037,5]
[312964182,1706549441124,-270.45172552,0.00037,4]
[312964183,1706549441134,-200.0,0.00037046,2]
[312964184,1706549441143,-152.0,0.00037069,4]
[312964185,1706549441152,-176.69,0.00037096,2]
[312964186,1706549441161,-1666.9540837,0.00037111,15]
[312964187,1706549441170,-1322.95285551,0.00037115,2]
[312964188,1706549441180,-1800.02,0.00037139,5]
[312964189,1706549441190,-200.0,0.00037321,2]
[312964190,1706549441199,-155.0,0.0003737,2]
[312964191,1706549441209,-154.77,0.00037443,2]
[312964192,1706549441218,-1322.95285551,0.00037457,2]
[312964193,1706549441228,-204.0,0.000375,2]
[312964194,1706549441238,-3408.14934093,0.00037533,10]
[312964195,1706549441249,-500.0,0.00037596,2]
[312964196,1706549441259,-800.0,0.00037596,5]
[312964197,1706549441270,-200.0,0.00037596,2]
[312964198,1706549441282,-1023.5,0.00037639,2]
[312964199,1706549441291,-150.0,0.00037639,2]
[312964200,1706549441300,-176.69,0.00037644,2]
[312964202,1706549441310,-12098.35640224,0.00037687,4]
[312964203,1706549441320,-907.9581364,0.00037688,4]
[312964204,1706549441330,-1262.71758815,0.00037688,4]
[312964205,1706549441341,-171.51031647,0.00037701,5]
[312964206,1706549441351,-1322.95285551,0.00037786,2]
[312964207,1706549441360,-150.0,0.00037793,2]
[312964208,1706549441370,-150.0,0.00037836,2]
[312964209,1706549441379,-221.13755376,0.00037887,2]
[312964210,1706549441388,-299.25615206,0.0003789,4]
[312964211,1706549441610,-1899.74384794,0.0003789,4]
[312964212,1706549441620,-41.13585206,0.0003789,4]
[312964213,1706549441632,-1467.29741007,0.0003789,4]
[312964214,1706549441646,-2805.56673787,0.0003789,4]
[312964215,1706549441656,-2057.22582818,0.0003789,2]
[312964216,1706549441686,-561.6645378,0.0003789,2]
[312964217,1706549441703,-5180.57652142,0.0003789,2]
[312964218,1706549441714,-7641.57211398,0.0003789,2]
[312964219,1706549441725,-408.13388114,0.0003789,2]
[312964240,1706549443658,-369.38203325,0.0003609,10]
[312964241,1706549443669,-653.29876606,0.0003609,10]
[312964242,1706549443774,-317.39920069,0.0003609,10]
[312964243,1706549443783,-150.0,0.00036896,7]
[312964244,1706549443793,-2493.86993811,0.0003789,2]
[312964245,1706549443802,-246.2339463,0.00037894,2]
[312964246,1706549443811,-1738.13409492,0.00037894,2]
[312964268,1706549445873,-434.13148813,0.00034502,7]
[312964270,1706549445882,-1232.20403816,0.00036895,4]
[312964271,1706549445893,-2826.23362545,0.00036895,4]
[312964272,1706549445902,-270.09493168,0.00036895,4]
[312964273,1706549445915,-761.86909578,0.00037894,2]
[312964274,1706549445925,-30504.32243014,0.00037894,2]
[312964275,1706549445940,-440.80572,0.00037894,2]
[312964276,1706549445952,-468.96,0.00037894,2]
[312964277,1706549445964,-6496.02062856,0.00037894,2]
[312964278,1706549445975,-577.2793438,0.00037894,2]
[312964279,1706549445987,-10146.86985859,0.00037894,2]
[312964280,1706549446003,-418.678,0.00037894,2]
[312964281,1706549446055,-910.06497573,0.00036895,4]
[312964282,1706549446064,-296.44223847,0.00037894,2]
[312964283,1706549446123,-354.10421984,0.00037894,2]
[312964284,1706549446136,-45799.2388633,0.00037894,2]
[312964285,1706549446145,-3976.2380556,0.00037894,2]
[312964286,1706549446155,-11883.5078634,0.00037894,2]
[312964287,1706549446164,-8567.3518146,0.00037894,2]
[312964288,1706549446174,-64506.9999027,0.00037894,2]
[312964289,1706549446184,-3631.79024089,0.00037898,4]
[312964290,1706549446194,-258.02445967,0.00037898,4]
[312964291,1706549446203,-1000.0,0.00037898,4]
[312964292,1706549446213,-155.0,0.00037898,4]
[312964293,1706549446222,-487.99435337,0.00037898,4]
[312964294,1706549446232,-818.03888278,0.00037898,4]
[312964296,1706549446242,-439.76539035,0.00037899,4]
[312964298,1706549446252,-434.74411592,0.00037899,4]
[312964299,1706549446261,-300.02,0.00037899,2]
[312964300,1706549446271,-5108.1657111,0.00037899,4]
[312964301,1706549446281,-268.56433013,0.00037899,2]
[312964302,1706549446291,-2550.86666777,0.00037899,2]
[312964304,1706549446301,-181.32600274,0.00037899,2]
[312964306,1706549446311,-150.0,0.00037899,2]
[312964308,1706549446324,-228.0,0.000379,5]
[312964310,1706549446334,-313.3919872,0.000379,2]
[312964312,1706549446345,-874.35219416,0.000379,4]
[312964314,1706549446354,-234.26434059,0.000379,4]
[312964316,1706549446364,-159.94367603,0.000379,4]
[312964318,1706549446373,-869.83474751,0.000379,4]
[312964320,1706549446383,-5854.61559977,0.000379,4]
[312964322,1706549446393,-155.28399107,0.000379,4]
[312964324,1706549446404,-156.50253449,0.000379,4]
[312964327,1706549446414,-859.85446453,0.000379,90]
[312964329,1706549446425,-233.25757119,0.000379,4]
[312964331,1706549446436,-155.16714405,0.000379,4]
[312964333,1706549446449,-310.12345772,0.000379,5]
[312964335,1706549446461,-500.0,0.000379,2]
[312964337,1706549446472,-176.52540934,0.000379,4]
[312964339,1706549446486,-200.0,0.000379,2]
[312964341,1706549446497,-200.0,0.000379,2]
[312964343,1706549446507,-149225.51427018,0.000379,3]
[312964346,1706549446534,-459.91149139,0.000379,3]
[312964348,1706549446547,-309.18,0.000379,3]
[312964350,1706549446560,-550.69565633,0.000379,3]
[312964517,1706549463818,282.89706329,0.0002,2]
[312964522,1706549532908,847.06410669,0.0002,2]
[312964530,1706550491541,155.0,0.0002,2]
[312964531,1706550502983,155.0,0.0002,2]
[312964532,1706550509818,170.77267514,0.0002,2]
[312964533,1706550514381,157.12521251,0.0002,2]
[312964534,1706550515246,162.01160859,0.00019999,2]
[312964535,1706550522960,155.0,0.0002,2]
[312964536,1706550530528,229.11819185,0.0002,2]
[312964537,1706550550376,157.06134154,0.0002,2]
[312964538,1706550566582,157.06134154,0.0002,2]
[312964539,1706550584376,157.06134154,0.0002,2]
[312964540,1706550600377,207.0064636,0.0002,2]
[312964559,1706550631995,-677.3483605,0.00024187,2]
[312964561,1706550632005,-522.1442142,0.00024187,2]
[312964563,1706550632015,-623.3393929,0.00024188,2]
[312964565,1706550632024,-162.01160859,0.00024189,2]
[312964567,1706550632033,-742.13021361,0.00024189,2]
[312964573,1706550632113,-126.8637721,0.00024189,2]
[312964574,1706550632122,-353.89569612,0.00024192,2]
[312964575,1706550632132,-660.64356866,0.00024299,2]
[312964576,1706550632188,-345.3,0.00024299,2]
[312964620,1706550637983,-1969.15903134,0.00024299,2]
[312964621,1706550637993,-429.46259593,0.000244,2]
[312964622,1706550638095,-435.87771536,0.000244,2]
[312964623,1706550638107,-299.82901373,0.000244,2]
[312964624,1706550638154,-1711.83067498,0.000244,2]
[312964625,1706550638163,-150.0,0.00024999,2]
[312964626,1706550638173,-150.0,0.00024999,2]
[312964627,1706550638183,-550.0,0.00025,3]
[312964628,1706550638193,-3011.67714353,0.00025,2]
[312964629,1706550638203,-9049.34,0.00025238,2]
[312964630,1706550638214,-224.11193077,0.000263,2]
[312964631,1706550638224,-150.0,0.000264,2]
[312964632,1706550638234,-750.0,0.00026854,2]
[312964633,1706550638244,-500.0,0.00026889,2]
[312964634,1706550638254,-224.11193058,0.00026963,2]
[312964635,1706550638267,-150.14,0.00026997,2]
[312964636,1706550638278,-600.0,0.00027,3]
[312964637,1706550638288,-150.0,0.00027044,2]
[312964638,1706550638298,-250.0,0.00027073,2]
[312964639,1706550638308,-500.0,0.00027105,2]
[312964640,1706550638318,-200.0,0.00027105,2]
[312964641,1706550638328,-1852.42,0.00027347,2]
[312964642,1706550638338,-153.32,0.00027397,2]
[312964643,1706550638348,-945.66622257,0.00027484,2]
[312964644,1706550638369,-1054.33377743,0.00027484,2]
[312964645,1706550638380,-294.77806135,0.00027592,2]
[312964646,1706550638390,-224.11193058,0.00027626,2]
[312964647,1706550638400,-186.89,0.00027671,2]
[312964648,1706550638410,-150.0,0.00027908,2]
[312964649,1706550638419,-158.7,0.0002792,2]
[312964650,1706550638429,-297.37,0.00027942,3]
[312964651,1706550638438,-250.0,0.00028005,2]
[312964652,1706550638448,-2093.12149407,0.00028044,2]
[312964657,1706550638576,-21806.87850593,0.00028044,2]
[312964659,1706550638585,-224.11193058,0.00028289,2]
[312964661,1706550638594,-573.8,0.00028642,2]
[312964663,1706550638603,-224.11193058,0.00028953,2]
[312964665,1706550638612,-650.0,0.00029,3]
[312964667,1706550638621,-1069.51,0.00029382,2]
[312964669,1706550638630,-279.71703256,0.00029505,2]
[312964671,1706550638639,-224.11193058,0.00029616,2]
[312964673,1706550638648,-10040.65598615,0.00029804,2]
[312964675,1706550638659,-7567.78490808,0.00029804,2]
[312964677,1706550638670,-561.11018765,0.00029804,2]
[312964679,1706550638683,-654.70682192,0.00029804,2]
[312964708,1706550640745,-1600.65,0.00027056,2]
[312964709,1706550640756,-690.03922118,0.00027056,2]
[312964710,1706550641192,-414.31077882,0.00027056,2]
[312964711,1706550641202,-140922.85021501,0.00029804,2]
[312964712,1706550641212,-21688.1777175,0.00029805,7]
[312964713,1706550641244,-2991.07951462,0.00029805,7]
[312964714,1706550641256,-17281.74036797,0.00029805,7]
[312964715,1706550641270,-8039.00239991,0.00029805,7]